lending/lending_fUSD_20250303
["ID","MTS","AMOUNT","RATE_DAILY","PERIOD"]
[355195351,1740991080320,176.24,0.00014794,2]
[355195353,1740991172215,377.0,0.00024648,120]
[355195354,1740991172662,150.5,0.00024648,120]
[355195355,1740991172689,377.0,0.00024638,120]
[355195356,1740991173116,150.5,0.00024638,120]
[355195357,1740991173144,377.0,0.00024628,120]
[355195358,1740991173583,288.61,0.00024628,120]
[355195359,1740991173612,377.0,0.0002493,120]
[355195360,1740991174050,377.0,0.0002492,120]
[355195361,1740991174527,377.0,0.0002491,120]
[355195362,1740991198743,695.87,0.00012915,2]
[355195363,1740991201023,2000.0,0.00014832,2]
[355195373,1740991292516,150.5,0.00024648,120]
[355195374,1740991293050,150.5,0.00024638,120]
[355195375,1740991293471,150.5,0.00024628,120]
[355195376,1740991327142,643.84,0.00014797,2]
[355195377,1740991356123,1428.0,0.000148,2]
[355195378,1740991384703,1000.0,0.00014814,2]
[355195379,1740991408714,23900.0,0.00014833,2]
[355195380,1740991444029,-300.0,0.00014899,2]
[355195382,1740991486919,4360.68,0.0001483,2]
[355195383,1740991533227,151.0,0.0002465,120]
[355195384,1740991533673,151.0,0.0002464,120]
[355195385,1740991534161,151.0,0.0002463,120]
[355195386,1740991534624,151.0,0.0002465,120]
[355195387,1740991535095,151.0,0.0002464,120]
[355195388,1740991535542,151.0,0.0002463,120]
[355195389,1740991536042,151.0,0.0002465,120]
[355195390,1740991536510,151.0,0.0002464,120]
[355195391,1740991537098,151.0,0.0002465,120]
[355195392,1740991537472,156.79,0.0002464,120]
[355195393,1740991562620,-300.0,0.00014899,2]
[355195397,1740991577819,250.0,0.00014743,2]
[355195403,1740991623315,161.58591822,0.00025,120]
[355195405,1740991745985,100000.0,0.00025,90]
[355195406,1740991778192,9511.59286947,0.0002,14]
[355195413,1740991832449,-2085.94825,0.0001487,2]
[355195414,1740991832459,-240.78,0.00014898,2]
[355195415,1740991832468,-300.0,0.00014899,2]
[355195416,1740991832478,-6092.337492,0.000149,2]
[355195417,1740991832487,-325.08555778,0.000149,2]
[355195418,1740991832497,-1331.01277168,0.000149,2]
[355195419,1740991832507,-97.20710855,0.000149,2]
[355195420,1740991832519,-2360.0,0.000149,2]
[355195421,1740991832532,-1692.12173148,0.000149,2]
[355195422,1740991832541,-1937.7163,0.000149,2]
[355195423,1740991832551,-1920.4061,0.000149,2]
[355195424,1740991832560,-313.71295704,0.000149,2]
[355195425,1740991832569,-1544.43,0.00014907,2]
[355195426,1740991832579,-160.19074191,0.00014973,2]
[355195427,1740991832588,-160.19074191,0.00014973,2]
[355195428,1740991832598,-160.19080219,0.00014973,2]
[355195429,1740991832607,-160.19074182,0.00014973,2]
[355195430,1740991832616,-160.19074182,0.00014973,2]
[355195431,1740991832625,-500.0,0.00014973,2]
[355195432,1740991832635,-160.19074182,0.00014973,2]
[355195433,1740991832644,-160.19074191,0.00014973,2]
[355195434,1740991832654,-159.03147239,0.00014973,2]
[355195435,1740991832663,-160.25298241,0.00014973,2]
[355195436,1740991832673,-500.0,0.00014973,2]
[355195437,1740991832683,-240.78,0.00014984,2]
[355195438,1740991832693,-934.08247134,0.0001499,2]
[355195439,1740991832702,-256.34602231,0.0001499,2]
[355195440,1740991832712,-583.57816704,0.00014999,2]
[355195441,1740991832722,-500.0,0.00014999,2]
[355195442,1740991832732,-197.264,0.00014999,2]
[355195443,1740991832741,-2022.497,0.00014999,2]
[355195444,1740991832751,-500.0,0.00014999,2]
[355195445,1740991832760,-512516.44351268,0.00015,2]
[355195446,1740991832773,-535144.11333568,0.00015,2]
[355195447,1740991833004,-514.12564157,0.00015,2]
[355195448,1740991833046,-8551.54519397,0.00015,2]
[355195449,1740991833058,-5615.92461524,0.00015,2]
[355195450,1740991833071,-3614.97335,0.00015,2]
[355195451,1740991833083,-80049.999995,0.00015,2]
[355195454,1740991838210,-491.99999916,0.000149,2]
[355195455,1740991838368,-9227.71806774,0.000149,2]
[355195456,1740991838378,-1332.22411289,0.00015,2]
[355195457,1740991838389,-1072.35,0.00015,2]
[355195458,1740991838536,-9260.05823244,0.00015,2]
[355195459,1740991838548,-261.7,0.00015,2]
[355195460,1740991838559,-7863.99666,0.00015,2]
[355195487,1740991840265,-1481.67882265,0.00015,2]
[355195488,1740991840371,-47399.40008658,0.00015,2]
[355195489,1740991840485,-2114.20561369,0.00015,2]
[355195490,1740991840496,-15009.30590181,0.00015,2]
[355195491,1740991840511,-1203.2499875,0.00015,2]
[355195526,1740991843561,-190.00780221,0.000149,2]
[355195527,1740991843571,-45809.99219779,0.00015,2]
[355195528,1740991843608,-17138.32760273,0.00015,2]
[355195534,1740991846564,-1057.396787,0.00015,2]
[355195535,1740991846595,-857.82849578,0.00015,2]
[355195536,1740991846643,-960.95999984,0.00015,2]
[355195537,1740991846655,-1330.0,0.00015,2]
[355195539,1740991847106,334.37,0.00014819,2]
[355195543,1740991877877,154.0,0.00025,120]
[355195547,1740991905436,193581.85433333,0.00014676,2]
[355195548,1740991905461,2950000.0,0.00014676,2]
[355195549,1740991905491,399729.2948042,0.00014676,2]
[355195553,1740991957441,250.0,0.00014767,2]
[355195554,1740992027219,39582.83348731,0.000201,14]
[355195555,1740992072967,163.33,0.00014766,2]
[355195556,1740992074743,399.78,0.00014761,2]
[355195557,1740992079857,250.0,0.00013,2]
[355195559,1740992125633,30074.9644967,0.00025,90]
[355195560,1740992153961,176.24,0.00014751,2]
[355195561,1740992166961,3033.8701,0.000148,2]
[355195567,1740992189004,912.82,0.00014752,2]
[355195569,1740992192758,150.0,0.00014744,7]
[355195571,1740992261970,1390.63216,0.0001485,2]
[355195573,1740992352869,515.07,0.00014731,2]
[355195574,1740992353162,150.0,0.00014731,2]
[355195575,1740992354437,350.0914,0.000148,2]
[355195576,1740992364395,-2000000.0,0.00026408,45]
[355195577,1740992368249,1830.7364,0.000148,2]
[355195578,1740992373771,-10000004.0,0.00026408,45]
[355195579,1740992380799,-10000007.0,0.00026408,45]
[355195580,1740992388696,-10000009.0,0.00026408,45]
[355195581,1740992388853,661.07,0.00012818,2]
[355195637,1740992531528,171.1302135,0.000148,2]
[355195641,1740992536551,171.13021349,0.00014817,2]
[355195642,1740992541538,171.13021349,0.00014833,2]
[355195643,1740992546539,171.13021349,0.0001485,2]
[355195644,1740992563147,1000.0,0.00014706,2]
[355195648,1740992652887,1158.86013,0.0001485,2]
[355195649,1740992783116,11429.79,0.00014201,2]
[355195655,1740992935378,162.55,0.00014183,2]
[355195656,1740992935784,162.55,0.00014265,2]
[355195657,1740992936031,162.55,0.00014347,2]
[355195658,1740992936229,162.55,0.00014429,2]
[355195659,1740992936440,162.55,0.00014511,2]
[355195660,1740992936646,162.55,0.00014593,2]
[355195661,1740992937060,162.55,0.00014675,2]
[355195662,1740992937481,162.55,0.00014757,2]
[355195663,1740992937686,162.55,0.00014839,2]
[355195671,1740993031494,-550.0,0.00014873,2]
[355195672,1740993031505,-248.76112426,0.0001488,2]
[355195673,1740993031517,-94.58855876,0.0001488,2]
[355195674,1740993031527,-200.0,0.0001488,2]
[355195675,1740993031537,-3068.3707,0.000149,2]
[355195676,1740993031547,-38148.41062124,0.000149,2]
[355195677,1740993031789,-15512.96857863,0.000149,2]
[355195678,1740993031810,-140464.98464464,0.000149,2]
[355195679,1740993031819,-599.99514599,0.000149,2]
[355195680,1740993031829,-309.48821019,0.000149,2]
[355195681,1740993031839,-1902.885,0.00014908,2]
[355195682,1740993031849,-190.933,0.00014908,2]
[355195683,1740993031861,-162.55,0.00014922,2]
[355195684,1740993031876,-4040.0,0.00014955,2]
[355195685,1740993031886,-1011.0,0.00014955,2]
[355195686,1740993031896,-260.093,0.00014955,2]
[355195687,1740993031906,-3928.0,0.00014955,2]
[355195688,1740993031915,-500.0,0.00014973,2]
[355195689,1740993031924,-500.0,0.00014973,2]
[355195690,1740993031934,-500.0,0.00014999,2]
[355195691,1740993031945,-563.0,0.00015,2]
[355195692,1740993031956,-522883.8123399,0.00015,2]
[355195693,1740993031970,-175216.67851343,0.00015,2]
[355195694,1740993031982,-7824.25446,0.00015,2]
[355195697,1740993031996,-1046.7,0.00015,2]
[355195699,1740993032009,-2568.5,0.00015,2]
[355195701,1740993032021,-849.3640825,0.00015,2]
[355195704,1740993032046,-338.75127973,0.00015,2]
[355195705,1740993032062,-400.490495,0.00015,2]
[355195706,1740993032078,-4474.6664752,0.00015,2]
[355195737,1740993037352,-561.75000035,0.00014955,2]
[355195738,1740993037406,-550.24999965,0.00014955,2]
[355195739,1740993037416,-5073.45839708,0.00015,2]
[355195740,1740993037428,-690.35119895,0.00015,2]
[355195741,1740993037440,-647.02181224,0.00015,2]
[355195742,1740993037616,-15414.76797999,0.00015,2]
[355195743,1740993037670,-723.82390446,0.00015,2]
[355195744,1740993037682,-373.09900412,0.00015,2]
[355195770,1740993039536,-775.5981233,0.00015,2]
[355195771,1740993039561,-101058.99724924,0.00015,2]
[355195772,1740993039668,-455.78372172,0.00015,2]
[355195773,1740993039882,-747.75691635,0.00015,2]
[355195774,1740993039905,-543.62402289,0.00015,2]
[355195775,1740993039917,-352.375,0.00015,2]
[355195776,1740993039928,-461.215,0.00015,2]
[355195803,1740993043656,-502.66986592,0.00015,2]
[355195804,1740993043668,-9162.6,0.00015,2]
[355195807,1740993043777,965.71678,0.0001485,2]
[355195808,1740993043790,-2841.29997,0.00015,2]
[355195817,1740993044202,-3375.80792991,0.00015,2]
[355195827,1740993045620,-4493.24273365,0.00015,2]
[355195828,1740993045639,-579.42968011,0.00015,2]
[355195829,1740993045654,-645.00000118,0.00015,2]
[355195830,1740993045671,-634.6339999,0.00015,2]
[355195831,1740993045694,-933.57357923,0.00015,2]
[355195832,1740993045712,-362.02274994,0.00015,2]
[355195833,1740993045727,-750.59392284,0.00015,2]
[355195834,1740993045748,-1042.68863457,0.00015,2]
[355195835,1740993045765,-51851.54165403,0.00015,2]
[355195837,1740993054101,813.7,0.00014781,2]
[355195838,1740993071369,199.89,0.00014822,2]
[355195839,1740993220460,150.0,0.00014746,7]
[355195840,1740993293495,389.41,0.00014746,2]
[355195842,1740993419549,804.76398,0.0001485,2]
[355195843,1740993427564,2530.29,0.00012806,2]
[355195844,1740993443958,4100.0,0.000142,5]
[355195845,1740993446053,8300.0,0.000143,5]
[355195846,1740993448153,12500.0,0.000144,5]
[355195847,1740993450250,16700.0,0.000145,5]
[355195848,1740993452357,20900.0,0.000146,5]
[355195849,1740993454467,4100.0,0.000147,5]
[355195850,1740993456563,4100.0,0.000148,5]
[355195851,1740993478431,1143.04729873,0.00014504,2]
[355195852,1740993479346,7603.233392,0.00014825,2]
[355195853,1740993481605,110682.42688148,0.0001485,2]
[355195854,1740993485875,9595.08113132,0.000148,2]
[355195855,1740993519702,3821.73,0.00014722,2]
[355195856,1740993520188,250.0,0.00014722,2]
[355195857,1740993581962,1298.15068244,0.000148,2]
[355195858,1740993582018,179.99636944,0.000148,2]
[355195859,1740993586958,1298.1506824,0.00014811,2]
[355195860,1740993592142,1298.1506824,0.00014822,2]
[355195861,1740993596942,1298.1506824,0.00014833,2]
[355195862,1740993597762,1852.42,0.00014723,2]
[355195863,1740993603482,1298.1506824,0.00014844,2]
[355195864,1740993625004,150.0,0.00014179,2]
[355195865,1740993629737,2650.0,0.000148,2]
[355195866,1740993629766,300.952,0.000148,2]
[355195867,1740993655638,1462.09,0.00014179,2]
[355195868,1740993659203,-822.59177,0.000225,30]
[355195869,1740993690833,160.80389008,0.000148,2]
[355195870,1740993695813,2170.55,0.00014146,2]
[355195871,1740993695854,160.80389001,0.00014814,2]
[355195872,1740993700881,160.80389001,0.00014829,2]
[355195873,1740993705885,160.80389001,0.00014843,2]
[355195874,1740993723112,179.99636944,0.000148,2]
[355195875,1740993767800,4000.0,0.0001485,2]
[355195876,1740993786472,1000.0,0.00014072,2]
[355195877,1740993881242,5788.8,0.00014049,2]
[355195878,1740993898563,250.0,0.00013,2]
[355195880,1740993912696,10111.47,0.00014049,2]
[355195881,1740993920948,5388.54825109,9e-05,2]
[355195882,1740993926942,987.26201649,0.000108,2]
[355195883,1740993928762,5765.3721,0.000148,2]
[355195884,1740993929159,8665.12891184,0.0001345,2]
[355195885,1740993937492,24070.05107957,8e-05,2]
[355195886,1740993949017,12510.5285,0.00014788,2]
[355195887,1740993955405,34683.04054713,6.94e-05,2]
[355195888,1740993965727,2000.0,0.00014065,2]
[355195889,1740993966024,891.45,0.00014065,2]
[355195890,1740993966868,707.56884907,8e-05,2]
[355195891,1740993978408,800.71,0.00014093,2]
[355195892,1740993984974,2500.0,0.000148,2]
[355195893,1740994001907,5765.3721,0.000148,2]
[355195895,1740994025971,600.0,0.000142,5]
[355195896,1740994027617,1300.0,0.000143,5]
[355195897,1740994029720,1900.0,0.000144,5]
[355195898,1740994031817,2600.0,0.000145,5]
[355195899,1740994033912,3200.0,0.000146,5]
[355195900,1740994036188,600.0,0.000147,5]
[355195901,1740994036910,242.26892951,0.000148,2]
[355195902,1740994038303,600.0,0.000148,5]
[355195903,1740994050396,267.49,0.0001409,2]
[355195904,1740994059983,1586.5208,0.000148,2]
[355195905,1740994073459,64884.56291448,0.000139,2]
[355195906,1740994074286,1201.64384592,0.0001,2]
[355195907,1740994075630,728.89,0.00014128,2]
[355195908,1740994084550,1188.91623246,9.5e-05,2]
[355195909,1740994085225,738.61,0.00014114,2]
[355195916,1740994089538,155764.48261541,0.00014,2]
[355195917,1740994090690,2049.7422,0.000148,2]
[355195918,1740994093179,9890.20305897,0.0001439,2]
[355195919,1740994095979,3313.088,0.000148,2]
[355195920,1740994096580,1000.0,0.000135,2]
[355195923,1740994097383,23900.0,0.00014114,2]
[355195925,1740994103773,2507.66,0.00014114,2]
[355195926,1740994104591,1854.72860471,0.0001,2]
[355195927,1740994106010,3977.95173624,0.00014,2]
[355195929,1740994110024,1000.0,0.000148,2]
[355195930,1740994112001,10429.04633286,9.828e-05,2]
[355195931,1740994115746,4000.0,0.0001485,2]
[355195933,1740994116713,2626.23940845,0.0001,2]
[355195935,1740994119152,2444.29371111,0.00013,2]
[355195937,1740994132273,649.0753412,0.000148,2]
[355195945,1740994137239,649.0753412,0.00014811,2]
[355195946,1740994140263,2100.56,0.00014114,2]
[355195947,1740994143443,649.0753412,0.00014822,2]
[355195948,1740994147143,160.80389001,0.000148,2]
[355195949,1740994147265,649.0753412,0.00014833,2]
[355195951,1740994152155,160.80389001,0.00014833,2]
[355195952,1740994153852,649.0753412,0.00014844,2]
[355195953,1740994171114,698.4264,0.000148,2]
[355195954,1740994210608,301.0,0.000148,3]
[355195962,1740994231854,-649.0753412,0.00014856,2]
[355195963,1740994231864,-550.0,0.00014856,2]
[355195964,1740994231874,-160.80389001,0.00014867,2]
[355195965,1740994231883,-649.0753412,0.00014867,2]
[355195966,1740994231893,-584.74542759,0.00014878,2]
[355195967,1740994231908,-64.32991361,0.00014878,2]
[355195968,1740994231918,-1464.90735118,0.00014878,2]
[355195969,1740994231928,-1462.09,0.00014888,2]
[355195970,1740994231949,-102.72792809,0.00014889,2]
[355195971,1740994231972,-546.34741311,0.00014889,2]
[355195972,1740994231983,-1566.83428789,0.0001489,2]
[355195973,1740994231994,-956.0,0.0001489,2]
[355195974,1740994232011,-2115.19571211,0.0001489,2]
[355195975,1740994232023,-500.0,0.00014899,2]
[355195976,1740994232035,-258.50471693,0.00014899,2]
[355195977,1740994232046,-909.66,0.00014899,2]
[355195978,1740994232056,-500.0,0.00014899,2]
[355195979,1740994232067,-610.3,0.00014899,2]
[355195980,1740994232077,-837.91,0.00014899,2]
[355195981,1740994232088,-500.0,0.00014899,2]
[355195982,1740994232099,-8332.14,0.00014899,2]
[355195983,1740994232112,-11344.91,0.00014899,2]
[355195984,1740994232121,-10101.99,0.00014899,2]
[355195985,1740994232133,-1027.35,0.00014899,2]
[355195986,1740994232144,-607.19,0.00014899,2]
[355195988,1740994232157,-500.0,0.00014899,2]
[355195990,1740994232169,-1579.93,0.00014899,2]
[355195992,1740994232179,-733.85,0.00014899,2]
[355195993,1740994232190,-500.0,0.00014899,2]
[355195995,1740994232200,-500.0,0.00014899,2]
[355195997,1740994232210,-500.0,0.00014899,2]
[355195999,1740994232221,-549.95,0.00014899,2]
[355196001,1740994232231,-500.0,0.00014899,2]
[355196002,1740994232242,-514.37,0.00014899,2]
[355196003,1740994232252,-500.0,0.00014899,2]
[355196004,1740994232262,-500.0,0.00014899,2]
[355196005,1740994232272,-666.26,0.00014899,2]
[355196006,1740994232282,-15839.62,0.00014899,2]
[355196007,1740994232292,-500.0,0.00014899,2]
[355196008,1740994232302,-377.65522837,0.00014899,2]
[355196009,1740994232312,-500.0,0.00014899,2]
[355196010,1740994232323,-500.0,0.00014899,2]
[355196011,1740994232332,-500.0,0.00014899,2]
[355196012,1740994232342,-500.0,0.00014899,2]
[355196013,1740994232352,-500.0,0.00014899,2]
[355196014,1740994232361,-500.0,0.00014899,2]
[355196015,1740994232370,-735.25,0.00014899,2]
[355196016,1740994232379,-17223.14,0.00014899,2]
[355196017,1740994232388,-500.0,0.00014899,2]
[355196018,1740994232398,-500.0,0.00014899,2]
[355196019,1740994232412,-874.14,0.00014899,2]
[355196020,1740994232421,-500.0,0.00014899,2]
[355196021,1740994232431,-500.0,0.00014899,2]
[355196022,1740994232440,-500.0,0.00014899,2]
[355196023,1740994232450,-500.0,0.00014899,2]
[355196024,1740994232459,-500.0,0.00014899,2]
[355196025,1740994232469,-606.15,0.00014899,2]
[355196026,1740994232479,-500.0,0.00014899,2]
[355196027,1740994232488,-762.53,0.00014899,2]
[355196028,1740994232497,-682.74,0.00014899,2]
[355196029,1740994232506,-500.0,0.00014899,2]
[355196030,1740994232516,-500.0,0.00014899,2]
[355196031,1740994232704,-500.0,0.00014899,2]
[355196032,1740994232715,-217.97537401,0.00014899,2]
[355196033,1740994232725,-500.0,0.00014899,2]
[355196034,1740994232735,-538.05,0.00014899,2]
[355196035,1740994232744,-15202.12,0.00014899,2]
[355196036,1740994232754,-614.53,0.00014899,2]
[355196037,1740994232763,-500.0,0.00014899,2]
[355196038,1740994232773,-500.0,0.00014899,2]
[355196039,1740994232783,-500.0,0.00014899,2]
[355196040,1740994232792,-641.41,0.00014899,2]
[355196041,1740994232802,-500.0,0.00014899,2]
[355196042,1740994232811,-500.0,0.00014899,2]
[355196043,1740994232821,-500.0,0.00014899,2]
[355196044,1740994232831,-500.0,0.00014899,2]
[355196045,1740994232841,-500.0,0.00014899,2]
[355196046,1740994232851,-556.94,0.00014899,2]
[355196047,1740994232860,-500.0,0.00014899,2]
[355196048,1740994232869,-466.37042316,0.00014899,2]
[355196049,1740994232878,-500.0,0.00014899,2]
[355196050,1740994232888,-500.0,0.00014899,2]
[355196051,1740994232897,-500.0,0.00014899,2]
[355196052,1740994232909,-500.0,0.00014899,2]
[355196053,1740994232919,-500.0,0.00014899,2]
[355196054,1740994232929,-500.0,0.00014899,2]
[355196055,1740994232939,-11271.87081158,0.000149,2]
[355196056,1740994233460,-39.67800457,0.000149,2]
[355196057,1740994233477,-838.4778,0.000149,2]
[355196058,1740994233489,-5458.6877731,0.000149,2]
[355196059,1740994233501,-1032.43087862,0.000149,2]
[355196060,1740994233541,-493.78059,0.000149,2]
[355196061,1740994233552,-5155.1499,0.000149,2]
[355196062,1740994237610,-706.03,0.00014899,2]
[355196063,1740994237620,-290.45688223,0.00014899,2]
[355196064,1740994237723,-209.54311777,0.00014899,2]
[355196065,1740994237733,-379.03321135,0.00014899,2]
[355196066,1740994237742,-61656.98194213,0.000149,2]
[355196067,1740994237751,-162528.1599,0.000149,2]
[355196068,1740994237760,-36357.483,0.000149,2]
[355196069,1740994237769,-1000.0,0.000149,2]
[355196070,1740994237778,-2751.2031,0.000149,2]
[355196071,1740994237787,-300227.57432371,0.000149,2]
[355196072,1740994237796,-600.0,0.000149,5]
[355196073,1740994237806,-160.80389001,0.000149,2]
[355196074,1740994237815,-649.0753412,0.000149,2]
[355196075,1740994237825,-244.661,0.0001497,2]
[355196076,1740994237834,-728.0,0.0001497,2]
[355196077,1740994237843,-1583.0,0.0001497,2]
[355196078,1740994237852,-570.0,0.0001497,2]
[355196079,1740994237861,-786.0,0.0001497,2]
[355196080,1740994237870,-908.0,0.0001497,2]
[355196081,1740994237879,-1313.154,0.0001497,2]
[355196082,1740994237888,-1432.912,0.0001497,2]
[355196083,1740994237897,-603.515,0.0001497,2]
[355196084,1740994237908,-4040.0,0.0001497,2]
[355196085,1740994237918,-1112.0,0.0001497,2]
[355196086,1740994237928,-1277.0,0.0001497,2]
[355196087,1740994237937,-3928.0,0.0001497,2]
[355196088,1740994237946,-642.0,0.0001497,2]
[355196089,1740994237955,-150.0,0.0001497,2]
[355196090,1740994237964,-160.19021712,0.00014973,2]
[355196091,1740994237974,-160.19178586,0.00014973,2]
[355196092,1740994237984,-160.19178586,0.00014973,2]
[355196093,1740994237993,-160.19178585,0.00014973,2]
[355196094,1740994238003,-500.0,0.00014973,2]
[355196095,1740994238012,-451.98488074,0.00014973,2]
[355196097,1740994238023,-5178.0,0.00014986,2]
[355196098,1740994238033,-500.0,0.00014999,2]
[355196099,1740994238043,-500.0,0.00014999,2]
[355196100,1740994238053,-500.0,0.00014999,2]
[355196101,1740994238062,-500.0,0.00014999,2]
[355196102,1740994238071,-500.0,0.00014999,2]
[355196103,1740994238081,-632.08,0.00014999,2]
[355196104,1740994238090,-577.13,0.00014999,2]
[355196105,1740994238100,-500.0,0.00014999,2]
[355196106,1740994238109,-500.0,0.00014999,2]
[355196107,1740994238120,-500.0,0.00014999,2]
[355196108,1740994238130,-500.0,0.00014999,2]
[355196109,1740994238140,-500.0,0.00014999,2]
[355196110,1740994238149,-794.33,0.00014999,2]
[355196111,1740994238162,-500.0,0.00014999,2]
[355196112,1740994238171,-500.0,0.00014999,2]
[355196113,1740994238181,-659.39,0.00014999,2]
[355196114,1740994238192,-500.0,0.00014999,2]
[355196115,1740994238202,-500.0,0.00014999,2]
[355196116,1740994238211,-500.0,0.00014999,2]
[355196117,1740994238222,-500.0,0.00014999,2]
[355196118,1740994238232,-500.0,0.00014999,2]
[355196119,1740994238242,-500.0,0.00014999,2]
[355196120,1740994238251,-500.0,0.00014999,2]
[355196121,1740994238261,-500.0,0.00014999,2]
[355196122,1740994238270,-500.0,0.00014999,2]
[355196123,1740994238280,-500.0,0.00014999,2]
[355196124,1740994238289,-500.0,0.00014999,2]
[355196125,1740994238299,-500.0,0.00014999,2]
[355196126,1740994238309,-500.0,0.00014999,2]
[355196127,1740994238319,-500.0,0.00014999,2]
[355196128,1740994238328,-500.0,0.00014999,2]
[355196129,1740994238337,-500.0,0.00014999,2]
[355196130,1740994238347,-500.0,0.00014999,2]
[355196131,1740994238356,-1077.15,0.00014999,2]
[355196132,1740994238365,-23901.33,0.00014999,2]
[355196133,1740994238374,-500.0,0.00014999,2]
[355196134,1740994238384,-500.0,0.00014999,2]
[355196135,1740994238393,-500.0,0.00014999,2]
[355196136,1740994238402,-500.0,0.00014999,2]
[355196137,1740994238571,-507.31763833,0.00014999,2]
[355196138,1740994238583,-500.0,0.00014999,2]
[355196139,1740994238593,-500.0,0.00014999,2]
[355196140,1740994238602,-500.0,0.00014999,2]
[355196141,1740994238612,-6611.06,0.00014999,2]
[355196142,1740994238624,-1341.28,0.00014999,2]
[355196143,1740994238635,-500.0,0.00014999,2]
[355196144,1740994238644,-500.0,0.00014999,2]
[355196145,1740994238654,-500.0,0.00014999,2]
[355196146,1740994238666,-500.0,0.00014999,2]
[355196147,1740994238675,-500.0,0.00014999,2]
[355196148,1740994238684,-501.75228486,0.00014999,2]
[355196149,1740994238693,-500.0,0.00014999,2]
[355196150,1740994238703,-500.0,0.00014999,2]
[355196151,1740994238712,-500.0,0.00014999,2]
[355196152,1740994238721,-500.0,0.00014999,2]
[355196153,1740994238730,-500.0,0.00014999,2]
[355196154,1740994238739,-500.0,0.00014999,2]
[355196155,1740994238748,-500.0,0.00014999,2]
[355196156,1740994238758,-500.0,0.00014999,2]
[355196157,1740994238767,-500.0,0.00014999,2]
[355196158,1740994238776,-500.0,0.00014999,2]
[355196159,1740994238786,-500.0,0.00014999,2]
[355196160,1740994238795,-500.0,0.00014999,2]
[355196161,1740994238804,-699.67,0.00014999,2]
[355196162,1740994238813,-500.0,0.00014999,2]
[355196163,1740994238822,-500.0,0.00014999,2]
[355196164,1740994238832,-500.0,0.00014999,2]
[355196165,1740994238841,-500.0,0.00014999,2]
[355196166,1740994238851,-502.85714803,0.00014999,2]
[355196167,1740994238860,-500.0,0.00014999,2]
[355196168,1740994238870,-503.48774546,0.00014999,2]
[355196169,1740994238879,-504.8097629,0.00014999,2]
[355196170,1740994238888,-500.0,0.00014999,2]
[355196171,1740994238898,-500.0,0.00014999,2]
[355196172,1740994238910,-571.33,0.00014999,2]
[355196173,1740994238920,-500.0,0.00014999,2]
[355196174,1740994238929,-560.38296506,0.00014999,2]
[355196175,1740994238938,-500.0,0.00014999,2]
[355196176,1740994238947,-500.0,0.00014999,2]
[355196177,1740994238956,-509.9308235,0.00014999,2]
[355196178,1740994238966,-500.0,0.00014999,2]
[355196179,1740994238976,-500.0,0.00014999,2]
[355196180,1740994238984,-505.25064592,0.00014999,2]
[355196181,1740994238994,-500.0,0.00014999,2]